Cogmind - Beta 10.1 @@@ ROGUE MODE // 2020.09.25 @ 21:09:54 Player: Turbografx16 Result: Self-destructed Performance ------------- Evolutions (2) 1000 Regions Visited (3) 600 Robots Destroyed (13) 65 Value Destroyed (337) 337 Prototype IDs (0) 0 Alien Tech Used (0) 0 Bonus (0) 0 TOTAL SCORE: 2002 Bonus ------- None Cogmind --------- Core Integrity 398/550 Matter 202/300 Energy 100/100 System Corruption 0% Temperature Cool (9) Movement Walking (150) Ox1 Location -8/Materials Parts ------- > --- POWER (1) -------- (None) > --- PROPULSION (4) --- Aluminum Leg Aluminum Leg > --- UTILITY (4) ------ Small Storage Unit Large Storage Unit > --- WEAPON (2) ------- Assault Rifle Light Cannon > --- INVENTORY (12) --- Ion Engine Ion Engine EM Pulse Gun Grenade Launcher Peak State ------------ > --- POWER ------------ Ion Engine > --- PROPULSION ------- Light Treads Light Treads > --- UTILITY ---------- Small Storage Unit Large Storage Unit > --- WEAPON ----------- Heavy EM Pulse Gun Light Cannon > --- INVENTORY -------- Ion Engine Aluminum Leg Aluminum Leg EM Pulse Gun Assault Rifle Light Cannon Grenade Launcher [Rating: 8] Favorites ----------- Power Ion Engine Engine Ion Engine Propulsion Light Treads Treads Light Treads Leg Aluminum Leg Utility Small Storage Unit Storage Small Storage Unit Weapon Assault Rifle Energy Gun EM Pulse Gun Ballistic Gun Assault Rifle Ballistic Cannon Light Cannon Build | -11 -10 -9 -8 ------- Run | Scr Mat Mat Mat Slots Evolved 4 | . . 2 2 Power . | . . . . Propulsion 2 | . . 1 1 Utility 2 | . . 1 1 Weapon . | . . . . Parts Attached 14 | 1 4 4 5 Power 2 | . 1 1 . Engine 2 | . 1 1 . Core . | . . . . Reactor . | . . . . Propulsion 5 | . 2 . 3 Treads 2 | . 2 . . Leg 3 | . . . 3 Wheel . | . . . . Hover . | . . . . Flight . | . . . . Utility 1 | . 1 . . Device . | . . . . Storage 1 | . 1 . . Processor . | . . . . Hackware . | . . . . Protection . | . . . . Artifact . | . . . . Weapon 6 | 1 . 3 2 Energy Gun 1 | . . 1 . Energy Cannon . | . . . . Ballistic Gun 2 | 1 . . 1 Ballistic Cannon 3 | . . 2 1 Launcher . | . . . . Special Weapon . | . . . . Impact Weapon . | . . . . Slashing Weapon . | . . . . Piercing Weapon . | . . . . Special Melee Weapon . | . . . . Unidentified Prototypes . | . . . . Parts Lost 6 | . . 1 5 Power 1 | . . . 1 Propulsion 3 | . . . 3 Utility . | . . . . Weapon 2 | . . 1 1 Highest Loss Streak 5 | . . 1 5 Average Slot Usage (%) 80 | . 93 76 60 Engine 11 | . 14 11 8 Treads 14 | . 3 22 13 Leg 8 | . 24 . 3 Storage 21 | . 21 22 18 Energy Gun 9 | . 14 7 4 Ballistic Gun 8 | . 14 5 3 Ballistic Cannon 5 | . . 8 9 Naked Turns . | . . . . Heaviest Build 31 | 13 29 31 31 Greatest Support 40 | 20 40 40 40 Greatest Overweight (x) 1 | . 1 . . Average Overweight (x) . | . . . . Largest Inventory Capacity 12 | 6 12 12 12 Average Capacity 11 | 6 9 12 12 Most Carried 9 | 6 7 9 8 Average Carried 6 | 4 5 6 7 Final Capacity 12 | 6 12 12 12 Final Carried 9 | 3 6 9 4 Class Distribution -------------------- 100% | Mutant Dominant Class ---------------- Mutant | -10/Materials Mutant | -9/Materials Mutant | -8/Materials Resources | -11 -10 -9 -8 ----------- Run | Scr Mat Mat Mat Matter Collected 409 | 210 68 118 13 Remotely . | . . . . Salvage Created 426 | . 138 224 64 Parts 26 | . 11 13 2 Haulers Intercepted . | . . . . Recyclers Shooed . | . . . . Parts Field Recycled . | . . . . Retrieved Matter . | . . . . Parts Self-Destructed . | . . . . Prevented . | . . . . Kills | -11 -10 -9 -8 ------- Run | Scr Mat Mat Mat Combat Hostiles Destroyed 12 | . 5 5 2 Guns 9 | . 5 2 2 Cannons 3 | . . 3 . Classes Destroyed 4 | . 2 2 . Worker 1 | . . 1 . Swarmer 4 | . 3 . 1 Grunt 7 | . 2 4 1 Sentry 1 | . . 1 . Best Kill Streak 5 | . 3 5 1 Combat Bots Only 3 | . 3 2 1 Max Kills in Single Turn 1 | . 1 1 1 Gunslinging . | . . . . Exploded . | . . . . Melee . | . . . . Uniques/NPCs Destroyed . | . . . . Combat | -11 -10 -9 -8 -------- Run | Scr Mat Mat Mat Damage Taken 1197 | . 159 521 517 Core 278 | . 26 100 152 Absorbed by Shields . | . . . . Core Remaining (%) 88 | 100 89 75 . Volleys Fired 42 | . 11 17 14 Largest 2 | . 2 2 2 Hottest 80 | . 60 80 80 Shots Fired 83 | . 22 34 27 Gun 51 | . 22 16 13 Cannon 32 | . . 18 14 Launcher . | . . . . Special . | . . . . Kinetic 55 | . 11 20 24 Thermal . | . . . . Explosive . | . . . . Electromagnetic 28 | . 11 14 3 Robot Hit Streak 20 | . 7 11 20 Robot Miss Streak 4 | . 3 2 4 Penetration Max . | . . . . Secondary Targets 2 | . 2 . . Max Gunslinging Chain 1 | . 1 . . Shots Hit Robots 56 | . 12 25 19 Core Hits 17 | . 6 7 4 Critical Hits 1 | . . 1 . Critical Kills . | . . . . Critical Parts Destroyed 1 | . . 1 . Melee Attacks . | . . . . Impact . | . . . . Slashing . | . . . . Piercing . | . . . . Sneak Attacks . | . . . . Combat Hostiles . | . . . . Follow-up Attacks . | . . . . Damage Inflicted 867 | . 148 452 267 Guns 470 | . 146 199 125 Cannons 395 | . . 253 142 Explosions . | . . . . Melee . | . . . . Ramming 2 | . 2 . . Kinetic 556 | . 40 276 240 Thermal . | . . . . Explosive . | . . . . Electromagnetic 309 | . 106 176 27 Impact . | . . . . Slashing . | . . . . Piercing . | . . . . Highest Corruption 4 | . 4 . . Average Corruption 2 | . 2 . . Corruption Purged . | . . . . Overload Shots . | . . . . Overflow Damage . | . . . . Projectiles . | . . . . Explosions . | . . . . Melee . | . . . . Knockbacks 1 | . . 1 . Impact . | . . . . Kinetic 1 | . . 1 . Secondary . | . . . . Self-Inflicted Damage . | . . . . Shots . | . . . . Rammed . | . . . . Targets Rammed 1 | . 1 . . Kicked 1 | . 1 . . Crushed . | . . . . Highest Temperature 277 | . 6 277 9 Average Temperature 103 | . 6 128 3 Received Heat Transfer 396 | . 12 240 144 Siege Activations . | . . . . Robots Corrupted . | . . . . Combat Hostiles . | . . . . Parts Fried . | . . . . Impact Corruptions . | . . . . Robots Melted . | . . . . Combat Hostiles . | . . . . Parts Melted . | . . . . Heat Transferred . | . . . . Parts Sabotaged . | . . . . Parts Stolen . | . . . . Parts Stripped . | . . . . Power Chain Reactions . | . . . . Missiles Intercepted . | . . . . Alert | -11 -10 -9 -8 ------- Run | Scr Mat Mat Mat Peak Influence 214 | . 142 214 116 Initial 85 | . . 59 85 Average 95 | . 84 105 94 Maximum Alert Level 1 | . . 1 . Low Security (%) 97 | 100 100 95 100 Level 1 2 | . . 4 . Level 2 . | . . . . Level 3 . | . . . . Level 4 . | . . . . Level 5 . | . . . . High Security . | . . . . Max Security . | . . . . Squads Dispatched 3 | . 1 2 . Investigation 2 | . . 2 . Extermination . | . . . . Reinforcement 1 | . 1 . . Assault . | . . . . Garrison . | . . . . Intercept . | . . . . Construction Impeded . | . . . . Haulers Reinforced . | . . . . Stealth | -11 -10 -9 -8 --------- Run | Scr Mat Mat Mat Distress Signals 2 | . 1 . 1 Communications Jammed . | . . . . Distress Signals . | . . . . Times Spotted 22 | . 7 10 5 Peak Tracking Total 5 | . 4 5 5 Tactical Retreats 2 | . . 2 . Traps | -11 -10 -9 -8 ------- Run | Scr Mat Mat Mat Traps Triggered 4 | . 2 2 . Indirectly . | . . . . Trap Hack Attempts . | . . . . Triggered . | . . . . Disarmed . | . . . . Reprogrammed . | . . . . Reused . | . . . . Traps Extracted . | . . . . Installed . | . . . . Triggered . | . . . . Machines | -11 -10 -9 -8 ---------- Run | Scr Mat Mat Mat Machines Disabled . | . . . . Max in Single Turn . | . . . . Machines Sabotaged . | . . . . Garrisons Compromised . | . . . . Overloaded Fab Kills . | . . . . Fab Network Shutdowns . | . . . . Hacking | -11 -10 -9 -8 --------- Run | Scr Mat Mat Mat Machines Accessed 8 | . 3 4 1 Terminals 6 | . 2 3 1 Fabricators . | . . . . Repair Stations . | . . . . Recycling Units 2 | . 1 1 . Scanalyzers . | . . . . Garrison Access . | . . . . Total Hacks 12 | . 5 5 2 Successful 8 | . 4 3 1 Failed 4 | . 1 2 1 Catastrophic 2 | . . 2 . Database Lockouts . | . . . . Manual 10 | . 4 4 2 Terminals 10 | . 4 4 2 Fabricators . | . . . . Repair Stations . | . . . . Recycling Units 2 | . 1 1 . Scanalyzers . | . . . . Garrison Access . | . . . . Terminal Hacks 2 | . 1 1 . Locate Traps 1 | . 1 . . Recall Investigation 1 | . . 1 . Fabricator Hacks . | . . . . Repair Station Hacks . | . . . . Recycling Unit Hacks 2 | . 1 1 . Report Inventory 2 | . 1 1 . Scanalyzer . | . . . . Garrison Access Hacks . | . . . . Unauthorized Hacks 4 | . 2 1 1 Terminals 4 | . 2 1 1 Botnet 4 | . 2 1 1 Fabricators . | . . . . Repair Stations . | . . . . Recycling Units . | . . . . Scanalyzers . | . . . . Garrison Access . | . . . . Data Cores Recovered . | . . . . Used . | . . . . Hacking Detections 4 | . 2 2 . Full Trace Events 1 | . . 1 . Feedback Events . | . . . . Feedback Blocked . | . . . . Robot Schematics Acquired . | . . . . Robots Built . | . . . . Matter . | . . . . Time . | . . . . Total Robot Build Rating . | . . . . Part Schematics Acquired . | . . . . Parts Built . | . . . . Matter . | . . . . Time . | . . . . Total Part Build Rating . | . . . . Parts Repaired . | . . . . Time . | . . . . Parts Recycled . | . . . . Recycled Matter . | . . . . Retrieved Matter . | . . . . Retrieved Components . | . . . . Parts Scanalyzed . | . . . . Part Schematics Acquired . | . . . . Parts Damaged . | . . . . Bothacking | -11 -10 -9 -8 ------------ Run | Scr Mat Mat Mat Used RIF Installer . | . . . . Robots Hacked . | . . . . Non-combat . | . . . . Combat . | . . . . Robot Hacks Applied . | . . . . Relay Couplers Released . | . . . . Robots Rewired . | . . . . Allies Hacked . | . . . . Hacks Repelled . | . . . . Allies | -11 -10 -9 -8 -------- Run | Scr Mat Mat Mat Total Allies . | . . . . Largest Group . | . . . . Highest-Rated Group . | . . . . Highest-Rated Ally . | . . . . Total Orders . | . . . . Ally Attacks . | . . . . Total Damage . | . . . . Kills . | . . . . Allies Corrupted . | . . . . Allies Melted . | . . . . Intel | -11 -10 -9 -8 ------- Run | Scr Mat Mat Mat Robot Analysis Total . | . . . . Derelict Logs Recovered . | . . . . Drone Launches . | . . . . Drone Recoveries . | . . . . Exploration | -11 -10 -9 -8 ------------- Run | Scr Mat Mat Mat Turns Passed 730 | 6 252 374 98 Spaces Moved 378 | 3 146 197 32 Core . | . . . . Treads 251 | . 22 197 32 Legs 127 | 3 124 . . Wheels . | . . . . Hover . | . . . . Flight . | . . . . Fastest Speed 120 | 120 120 160 160 Average Speed 151 | 120 138 160 160 Slowest Speed 160 | 120 160 160 160 Overloaded Moves . | . . . . Propulsion Burnouts . | . . . . Robots Hopped . | . . . . Cave-ins Triggered . | . . . . Exploration Rate (%) 15 | 2 34 19 6 Regions Visited 3 Branch Regions . Pre-discovered Areas . | . . . . Known Exits Taken . | . . . . Unknown Exits Taken 3 | 1 1 1 . Scrap Searched . | . . . . Spaces Dug . | . . . . Terrain Destroyed . | . . . . Melee . | . . . . Projectile . | . . . . AOE . | . . . . Terrain Rammed . | . . . . Walls Destroyed . | . . . . Machines Disabled . | . . . . Actions | -11 -10 -9 -8 --------- Run | Scr Mat Mat Mat Total 449 | 6 172 220 51 Wait 8 | . 7 1 . Move 375 | 2 145 196 32 Hop . | . . . . Pick Up 5 | . 3 2 . Fast Attach 1 | . 1 . . Attach 5 | . . . 5 Detach . | . . . . Swap 8 | 1 3 4 . Drop 4 | 3 1 . . Fire 42 | . 11 17 14 Melee . | . . . . Ram . | . . . . Kick 1 | . 1 . . Crush . | . . . . Escape Stasis . | . . . . Rewire . | . . . . Trap . | . . . . Miscellaneous . | . . . . Route ------- -11/Scrapyard -10/Materials -9/Materials -8/Materials History --------- Turn | Location | Event 5 | -11/Scrapyard | Discovered new exit (range 1) 7 | -11/Scrapyard | Entered Materials 192 | -10/Materials | Discovered new exit (range 14) 259 | -10/Materials | Entered another Materials area 259 | -9/Materials | Evolved 2 slots: Propulsion x1, Utility x1 302 | -9/Materials | Build established: Mutant 403 | -9/Materials | Discovered new exit (range 15) 633 | -9/Materials | Entered another Materials area 633 | -8/Materials | Evolved 2 slots: Propulsion x1, Utility x1 731 | -8/Materials | Self-destructed Last Messages --------------- 00644_ Connecting with Terminal... 00644_ Current location identified: Materials >>Trojan(Botnet) Trojan loaded successfully. Testing... Terminal linked with 0 systems. Awaiting botnet instructions. 00664_ W-25 Informer sends out distress signal. 00673_ S-10 Pest destroyed. 00676_ Acquired 13 matter. 00686_ Hvy. EM Pulse Gun destroyed. 00698_ K-01 Serf collects debris. 00701_ G-47 Trooper destroyed. 00701_ K-01 Serf collects debris. 00708_ Lgt. Treads destroyed. 00710_ K-01 Serf collects debris. 00717_ Lgt. Treads destroyed. 00721_ K-01 Serf collects debris. 00722_ Ion Engine destroyed. 00731_ Aluminum Leg destroyed. Map ----- +----------------------------------------------------+ | ???????????????????????????????????? | | ???????????????????????????????????? | | ???????????????????????????????????? | | ???????????????????????????????????? | | ???????????????????????????????????? | | ??#????????????????????????????????? | | ??# ??????????????????????????????? | | ??# ?############### ?????????? | | ??# # ????????? | | ??# ????????? | | ??# # ????????? | | ??##???#####+####### #????????????? | | ???????# """ #?????????????????? | | ????# ## "T" #?????????????????? | | ????# + #?????????????????? | | ????# ## """ """ #?????????????????? | | ???????# """ """ #?????????????????? | | ???????# """ """ #?????????????????? | | ???????# #?????????????????? | | ????#??# #?????????????????? | | ????# ?##+########?????????????????? | | ????# ### ### ### #????????????? | | ????# ???????????? | | ????# *= % T #????????????? | | ???#####;#s## ###+??????????????? | | ??# Y @#? ##?????????????????? | | ??# k #?? #??????????????????? | | ??# #???#??????????????????? | | ??# #??????????????????????? | | ??###########??????????????????????? | | ???????????????????????????????????? | | ???????????????????????????????????? | | ???????????????????????????????????? | | ???????????????????????????????????? | | ???????????????????????????????????? | | ???????????????????????????????????? | | ???????????????????????????????????? | | ???????????????????????????????????? | | ???????????????????????????????????? | | ???????????????????????????????????? | | ???????????????????????????????????? | | ???????????????????????????????????? | | ???????????????????????????????????? | | ???????????????????????????????????? | | ???????????????????????????????????? | | ???????????????????????????????????? | | ???????????????????????????????????? | | ???????????????????????????????????? | | ???????????????????????????????????? | | ???????????????????????????????????? | +----------------------------------------------------+ Best States ------------- Heat Dissipation 31 Energy Generation 10 Energy Capacity 250 Matter Stores 300 Matter Capacity 300 Sight Range 16 Terrain Scan Density 10 Evasion (%) 40 Recoil Reduction 2 Item Schematics ----------------- None Robot Schematics ------------------ None Fabricated ------------ Nothing Alien Tech Used ----------------- None Achievements -------------- None Challenges ------------ None Game ------ Seed DispersionShadeDrive Manual? 0 Play Time 00:07:45 Cumulative 27.5 hours Start 2020.09.25 @ 21:02:38 End 2020.09.25 @ 21:09:54 Sessions 1 Manual Loads 0 Difficulty Rogue Special Mode None Game No. 53 Rogue 16 Adventurer 37 Explorer 0 Win Type - Total 1 Types 0/0/0/1/0/0/0/0/0 Lore% 23 Gallery% 35 Achievement% 40 Wizard Run 0 Options --------- ASCII 0 Keyboard 0 Movement Mouse Keybinds 0 Fullscreen 1 Font 20/SmallcapsGlow Map View 66x50 Tactical HUD 1 Map Filters NONE Filters NONE Steam 1 RUN: 9fb6598f-63b4-4ac3-ae62-2875aaf8c61e